Cogmind - Beta 13 X1 @@@ ROGUE MODE // 2023.09.16 @ 20:44:54 Player: f3-rnm Result: Exoskeleton Destroyed Performance ------------- Evolutions (9) 4500 Regions Visited (17) 3400 Robots Destroyed (180) 900 Value Destroyed (6443) 6443 Prototype IDs (19) 380 Alien Tech Used (14) 2800 Bonus (15500) 15500 TOTAL SCORE: 33923 Bonus ------- Triggered Max Security 2000 High Alert Combat Kills 2318 Follower Combat Kills 144 Used Core Reset Matrix 3000 Scanned by Researcher 500 Pursued by Intercept 1000 Met Sigix 2000 Integrated Exoskeleton 5000 Friendly Fire -462 Cogmind --------- Core Integrity 0/1850 Matter 212/300 Energy 194/200 System Corruption 2% Temperature Cool (0) Movement Walking (30) Location -1/Access Parts ------- > --- POWER (1) -------- Backup Power VII > --- PROPULSION (3) --- Sigix Exoskeleton > --- UTILITY (4) ------ Small Storage Unit Enhanced Optical Array Advanced Targeting Computer Advanced Targeting Computer > --- WEAPON (4) ------- Sigix Sheargun Sigix Sheargun Sigix Sheargun > --- INVENTORY (8) ---- Sigix Containment Pod Peak State ------------ > --- POWER ------------ Backup Power VII > --- PROPULSION ------- Sigix Exoskeleton > --- UTILITY ---------- Small Storage Unit Microwarp Drive > --- WEAPON ----------- Sigix Broadsword > --- INVENTORY -------- Sigix Sheargun Sigix Sheargun Sigix Sheargun Sigix Sheargun Supercharged Sigix Terminator Sigix Containment Pod [Rating: 226] Favorites ----------- Power Heavy Ion Engine Engine Heavy Ion Engine Power Core Backup Power VII Reactor Cold Fusion Reactor Propulsion Advanced Treads Treads Advanced Treads Leg Sigix Exoskeleton Wheel Wheel Flight Unit Improved VTOL Module Utility Huge Storage Unit Device Cooling System Storage Huge Storage Unit Processor Targeting Computer Hackware Hacking Suite Protection Layered Light Armor Plating Artifact Microwarp Drive Weapon Gauss Rifle Energy Gun Sigix Sheargun Energy Cannon Advanced Beam Cannon Ballistic Gun Gauss Rifle Launcher Grenade Launcher Impact Weapon Shock Maul Slashing Weapon Chainsword Piercing Weapon Lance Build | -11 -10 -9 -9 -8 -8 -7 -6 -5 -4 -4 -4 -3 -3 -2 -2 -2 -1 ------- Run | Jun Mat Mat Min Mat Sto Fac Fac Fac Fac Was Fac Res Tes Res Qua Sec Acc Slots Evolved 18 | . . 2 . 2 . 2 2 2 2 . . 2 . 2 . . 2 Power 1 | . . . . . . . . 1 . . . . . . . . . Propulsion 6 | . . 1 . . . 2 1 1 . . . . . 1 . . . Utility 9 | . . 1 . 2 . . 1 . 2 . . 2 . 1 . . . Weapon 2 | . . . . . . . . . . . . . . . . . 2 Parts Attached 167 | 6 10 24 . 21 17 17 5 4 6 . 4 3 9 11 14 13 3 Power 21 | 1 2 1 . 2 . 1 3 . 3 . . . 1 . 6 1 . Engine 13 | 1 2 1 . 2 . . 1 . 2 . . . 1 . 3 . . Core 5 | . . . . . . 1 1 . . . . . . . 2 1 . Reactor 3 | . . . . . . . 1 . 1 . . . . . 1 . . Propulsion 41 | 2 2 7 . 8 6 7 1 1 . . . . . 4 3 . . Treads 22 | 2 1 6 . 7 6 . . . . . . . . . . . . Leg . | . . . . . . . . . . . . . . . . . . Wheel 1 | . 1 . . . . . . . . . . . . . . . . Hover . | . . . . . . . . . . . . . . . . . . Flight 18 | . . 1 . 1 . 7 1 1 . . . . . 4 3 . . Utility 68 | 1 3 7 . 9 10 4 1 2 2 . 4 3 3 6 4 8 1 Device 13 | . 1 2 . . 3 . . . 1 . 1 1 1 2 1 . . Storage 6 | 1 2 . . . . 1 . . . . . . . . 1 1 . Processor 8 | . . . . . 1 . . . . . . 2 1 1 . 2 1 Hackware 11 | . . . . . 1 2 1 2 . . 1 . 1 1 1 1 . Protection 26 | . . 5 . 9 5 1 . . 1 . 2 . . 2 . 1 . Artifact 4 | . . . . . . . . . . . . . . . 1 3 . Weapon 37 | 2 3 9 . 2 1 5 . 1 1 . . . 5 1 1 4 2 Energy Gun 12 | 2 . 4 . . . . . . . . . . 1 . 1 2 2 Energy Cannon 3 | . . 2 . . . . . . . . . . 1 . . . . Ballistic Gun 11 | . 2 3 . 2 1 3 . . . . . . . . . . . Ballistic Cannon . | . . . . . . . . . . . . . . . . . . Launcher 2 | . 1 . . . . . . . . . . . . . . 1 . Special Weapon . | . . . . . . . . . . . . . . . . . . Impact Weapon 3 | . . . . . . . . . 1 . . . 1 1 . . . Slashing Weapon 5 | . . . . . . 2 . . . . . . 2 . . 1 . Piercing Weapon 1 | . . . . . . . . 1 . . . . . . . . . Special Melee Weapon . | . . . . . . . . . . . . . . . . . . Unidentified Prototypes 22 | . . 3 . 1 . 1 3 . 1 . 1 . 2 5 5 . . Corrupted Parts 1 | . . 1 . . . . . . . . . . . . . . . System Corruption 3 | . . 3 . . . . . . . . . . . . . . . Parts Lost 28 | . 9 2 . 3 3 1 1 . 1 . 1 . . 4 3 . . Power 5 | . 2 . . . . . 1 . 1 . . . . 1 . . . Propulsion 6 | . 3 1 . . . . . . . . . . . 1 1 . . Utility 11 | . 1 1 . 1 3 . . . . . 1 . . 2 2 . . Weapon 6 | . 3 . . 2 . 1 . . . . . . . . . . . Highest Loss Streak 4 | . 4 1 . 2 1 1 1 . 1 . 1 . . 2 1 . . To Critical Strikes 2 | . 2 . . . . . . . . . . . . . . . . Average Slot Usage (%) 91 | . 70 88 100 99 98 93 97 91 92 94 96 100 100 97 90 64 79 Engine 8 | . 12 11 11 8 9 2 1 6 9 5 7 9 9 6 3 1 . Treads 17 | . 12 19 33 26 27 6 . . . . . . . . . . . Wheel 1 | . 7 2 . . . . . . . . . . . . . . . Flight 6 | . . 2 . . . 27 38 36 36 36 36 33 33 33 32 7 . Device 5 | . 3 8 11 9 5 . . . 2 5 5 4 4 4 4 1 . Storage 9 | . 14 11 11 9 9 6 6 5 5 5 5 4 4 4 3 8 8 Processor 2 | . . . . . 3 2 . . . . . 9 9 9 13 3 20 Hackware 3 | . . . . . 1 18 25 23 21 21 21 19 19 17 17 4 3 Protection 15 | . . 12 11 26 23 9 6 5 7 10 8 9 9 9 2 1 . Energy Gun 3 | . 7 7 . . . . . . . . . . . . 1 14 29 Energy Cannon 3 | . . 11 22 7 . . . . . . . . . . . . . Ballistic Gun 8 | . 12 1 . 10 18 7 . . . . . . . . . . . Naked Turns . | . . . . . . . . . . . . . . . . . . Heaviest Build 114 | 14 86 102 102 114 114 106 25 27 30 28 30 31 34 35 35 38 37 Greatest Support 70 | 40 40 66 66 68 66 60 31 37 37 37 37 37 37 42 50 70 70 Greatest Overweight (x) 32 | . 8 32 1 2 1 1 . . . . . . . . . . . Average Overweight (x) . | . 3 3 1 1 1 . . . . . . . . . . . . Largest Inventory Capacity 25 | 8 25 25 25 25 25 25 8 8 8 8 8 8 8 8 8 8 8 Average Capacity 20 | 7 17 25 25 25 25 12 8 8 8 8 8 8 8 8 7 7 8 Most Carried 25 | 5 15 25 25 25 25 25 8 8 7 7 8 8 8 8 8 8 3 Average Carried 18 | 1 10 23 25 24 24 12 7 7 5 6 6 7 7 7 7 6 2 Final Capacity 25 | 8 25 25 25 25 25 8 8 8 8 8 8 8 8 8 8 8 8 Final Carried 25 | 1 15 25 25 25 25 8 8 6 6 7 6 8 8 8 8 4 2 Class Distribution -------------------- 77% | Mutant 7% | Hacker-Scout 7% | Hacker-Sprinter 5% | Alien-Sigix Dominant Class ---------------- Mutant | -10/Materials Mutant | -9/Materials Mutant | -9/Mines Mutant | -8/Materials Mutant | -8/Storage Hacker-Sprinter | -7/Factory Hacker-Sprinter | -6/Factory Hacker-Sprinter | -5/Factory Hacker-Sprinter | -4/Factory Hacker-Sprinter | -4/Waste Hacker-Sprinter | -4/Factory Hacker-Scout | -3/Research Hacker-Scout | -3/Testing Hacker-Scout | -2/Research Hacker-Scout | -2/Quarantine Alien-Sigix | -2/Section 7 Alien-Sigix | -1/Access Resources | -11 -10 -9 -9 -8 -8 -7 -6 -5 -4 -4 -4 -3 -3 -2 -2 -2 -1 ----------- Run | Jun Mat Mat Min Mat Sto Fac Fac Fac Fac Was Fac Res Tes Res Qua Sec Acc Matter Collected 3334 | 223 213 453 . 576 944 169 116 40 30 . . 39 143 23 . 152 213 Remotely . | . . . . . . . . . . . . . . . . . . Salvage Created 6361 | 22 583 1238 . 1214 1736 . 186 103 112 . . 39 215 . . 287 626 Parts 354 | 1 35 92 . 68 96 . 8 2 7 . . . 2 . . 10 33 Haulers Intercepted 17 | . 1 5 . 3 5 . 2 1 . . . . . . . . . Recyclers Shooed 2 | . 1 . . . 1 . . . . . . . . . . . . Parts Field Recycled . | . . . . . . . . . . . . . . . . . . Retrieved Matter . | . . . . . . . . . . . . . . . . . . Parts Self-Destructed . | . . . . . . . . . . . . . . . . . . Prevented . | . . . . . . . . . . . . . . . . . . Kills | -11 -10 -9 -9 -8 -8 -7 -6 -5 -4 -4 -4 -3 -3 -2 -2 -2 -1 ------- Run | Jun Mat Mat Min Mat Sto Fac Fac Fac Fac Was Fac Res Tes Res Qua Sec Acc Combat Hostiles Destroyed 117 | . 20 28 . 19 22 . . . . . . . . . . 20 8 Melee 1 | . . . . . . . . . . . . . . . . 1 . Guns 74 | . 18 16 . 9 22 . . . . . . . . . . 2 7 Cannons 21 | . . 11 . 10 . . . . . . . . . . . . . AOE 20 | . 1 1 . . . . . . . . . . . . . 17 1 Classes Destroyed 21 | 1 6 4 . 1 1 . . . . . . . . . . 6 2 Worker 11 | . 1 5 . 1 2 . . . . . . . 1 . . . 1 Builder 4 | . . 1 . 2 1 . . . . . . . . . . . . Tunneler 1 | 1 . . . . . . . . . . . . . . . . . Hauler 17 | . 1 5 . 3 5 . 2 1 . . . . . . . . . Recycler 4 | . . . . . 2 . . . . . . . 1 . . . 1 Carrier 4 | . . . . . . . . . . . . . . . . 4 . Mechanic 2 | . . . . . . . . . . . . . . . . 2 . Operator 7 | . . 1 . 1 3 . . . . . . . 2 . . . . Watcher 12 | . 1 3 . 1 2 . . . 3 . . 1 . . . . 1 Swarmer 27 | . 12 14 . 1 . . . . . . . . . . . . . Cutter 5 | . . . . . . . . . . . . . . . . . 5 Grunt 41 | . 6 8 . 12 8 . . . . . . . . . . 7 . Brawler 1 | . . . . . . . . . . . . . . . . 1 . Duelist 5 | . . 1 . 1 . . . . . . . . . . . 3 . Protector 1 | . . . . . . . . . . . . . . . . 1 . Researcher 1 | . . . . . . . . . . . . . . . . 1 . Sentry 21 | . . 5 . 4 12 . . . . . . . . . . . . Hunter 8 | . . . . 1 2 . . . . . . . . . . 4 1 Programmer 2 | . . . . . . . . . . . . . . . . 1 1 Tracker 2 | . . . . . . . . . . . . . . . . 1 1 Combat Programmer 2 | . . . . . . . . . . . . . . . . 2 . Subdweller 2 | . 2 . . . . . . . . . . . . . . . . Assembled 1 | . . . . . . . . . . . . . . . . . 1 Best Kill Streak 24 | 1 4 8 . 5 6 . 1 1 2 . . 1 2 . . 24 4 Combat Bots Only 18 | . 4 5 . 3 5 . . . . . . . . . . 18 3 Max Kills in Single Turn 23 | 1 2 2 . 1 1 . 1 1 1 . . 1 1 . . 23 2 Gunslinging 1 | . 1 1 . . . . . . . . . . . . . . . Exploded 17 | . 1 1 . . . . . . . . . . . . . 17 1 Melee 1 | . . . . . . . . . . . . . . . . 1 . Uniques/NPCs Destroyed . | . . . . . . . . . . . . . . . . . . Combat | -11 -10 -9 -9 -8 -8 -7 -6 -5 -4 -4 -4 -3 -3 -2 -2 -2 -1 -------- Run | Jun Mat Mat Min Mat Sto Fac Fac Fac Fac Was Fac Res Tes Res Qua Sec Acc Damage Taken 13309 | . 1052 1210 . 1810 1722 72 317 . 143 . 91 44 77 779 494 3567 1931 Core 3088 | . 151 215 . 300 158 5 108 . 19 . . 23 . 136 71 1302 600 Absorbed by Shields 195 | . . . . . . . . . 23 . . . . 43 . 129 . Redirected to Shielding 428 | . . . . . . 9 45 . 26 . 44 13 50 221 20 . . Ignored by Resistances 5555 | . . 56 . 6 . . . . . . . . . . . 3474 2019 Regen/Repaired (Parts) 1043 | . . . . 220 . . . . . . 80 . . . 206 537 . Core Remaining (%) 68 | 100 39 . 46 . 16 99 87 100 . . 98 . 98 . . 5 . Volleys Fired 428 | 1 79 86 . 96 108 . . . . . . . . . 7 29 22 Largest 4 | 2 2 2 . 2 2 . . . . . . . . . 1 2 4 Hottest 400 | 100 100 136 . 136 56 . . . . . . . . . 80 200 400 Shots Fired 861 | 2 135 172 1 192 216 . . . . . . . . . 7 57 79 Gun 671 | 2 133 84 . 94 216 . . . . . . . . . 7 56 79 Cannon 187 | . . 88 1 98 . . . . . . . . . . . . . Launcher 3 | . 2 . . . . . . . . . . . . . . 1 . Special . | . . . . . . . . . . . . . . . . . . Kinetic 419 | . 67 42 . 94 216 . . . . . . . . . . . . Thermal 263 | 2 66 88 1 98 . . . . . . . . . . 7 1 . Explosive 2 | . 2 . . . . . . . . . . . . . . . . Electromagnetic 42 | . . 42 . . . . . . . . . . . . . . . Slashing 135 | . . . . . . . . . . . . . . . . 56 79 Robot Hit Streak 15 | 1 11 8 8 12 15 . . . . . . . . . . 4 5 Robot Miss Streak 10 | . 4 10 . 8 4 . . . . . . . . . . 6 5 Penetration Max 1 | . . . . 1 1 . . . . . . . . . . . 1 Secondary Targets 14 | . 2 5 . . 2 . . . . . . . . . . . 5 Max Gunslinging Chain 1 | . 1 1 . . 1 . . . . . . . . . . . 1 Shots Hit Robots 534 | 1 84 104 1 117 154 . 3 1 7 . . 1 5 . . 24 32 Core Hits 248 | 1 41 50 . 41 56 . 2 1 2 . . . 1 . . 37 16 Critical Kills 5 | . 1 . . 2 2 . . . . . . . . . . . . Critical Parts Destroyed 6 | . 1 . . 1 2 . . . . . . . 2 . . . . Critical Strikes 17 | 1 2 1 . 3 5 . . . . . . . 2 . . 1 2 Burn 1 | 1 . . . . . . . . . . . . . . . . . Destroy 11 | . 2 1 . 3 5 . . . . . . . . . . . . Smash 2 | . . . . . . . . . . . . . 2 . . . . Sever 3 | . . . . . . . . . . . . . . . . 1 2 Melee Attacks 76 | . . . . . . 5 18 2 13 . . 4 9 3 13 9 . Impact 32 | . . . . . . . . . 5 . . 3 5 3 12 4 . Slashing 43 | . . . . . . 5 18 1 8 . . 1 4 . 1 5 . Piercing 1 | . . . . . . . . 1 . . . . . . . . . Sneak Attacks 7 | . . . . . . . 2 1 1 . . . 3 . . . . Combat Hostiles . | . . . . . . . . . . . . . . . . . . Follow-up Attacks 1 | . . . . . . . . . . . . . 1 . . . . Damage Inflicted 46949 | 13 968 2131 25 2412 3172 . 211 67 388 . . 73 475 . . 34177 2837 Guns 10266 | 13 895 1056 . 1299 3172 . . . . . . . . . . 1244 2587 Cannons 2152 | . . 1024 20 1108 . . . . . . . . . . . . . Explosions 32594 | . 73 47 . . . . . . . . . . . . . 32339 135 Melee 1804 | . . . . . . . 211 67 388 . . 73 475 . . 590 . Ramming 133 | . . 4 5 5 . . . . . . . . . . . 4 115 Kinetic 5442 | . 395 576 . 1299 3172 . . . . . . . . . . . . Thermal 35051 | 13 500 1071 20 1108 . . . . . . . . . . . 32339 . Explosive 208 | . 73 . . . . . . . . . . . . . . . 135 Electromagnetic 480 | . . 480 . . . . . . . . . . . . . . . Impact 516 | . . . . . . . . . 129 . . 73 314 . . . . Slashing 5052 | . . . . . . . 211 . 259 . . . 161 . . 1834 2587 Piercing 67 | . . . . . . . . 67 . . . . . . . . . Highest Corruption 10 | . 4 3 3 . . 1 . . . 10 10 . . 4 7 4 2 Average Corruption 3 | . 3 3 3 . . 1 . . . 10 10 . . 2 5 3 1 Corruption Purged . | . . . . . . . . . . . . . . . . . . Corruption Blocked . | . . . . . . . . . . . . . . . . . . Effects 55 | . 11 24 2 . . . . . . . 3 . . 3 7 3 2 Message Errors 14 | . 4 7 . . . . . . . . 1 . . . . 2 . Matter Fused 14 | . 3 6 . . . . . . . . . . . . 5 . . Heat Flow Errors 5 | . 2 1 . . . . . . . . . . . 1 . . 1 Energy Discharges 5 | . 1 2 . . . . . . . . . . . 1 . 1 . Data Loss (minor) 9 | . 1 6 1 . . . . . . . . . . . 1 . . Misfires 2 | . . 1 1 . . . . . . . . . . . . . . Alerts 3 | . . . . . . . . . . . 1 . . 1 1 . . Misdirections 1 | . . . . . . . . . . . 1 . . . . . . Weapon Failures 2 | . . 1 . . . . . . . . . . . . . . 1 Overload Shots . | . . . . . . . . . . . . . . . . . . Overflow Damage 3742 | . . 12 . . . . . . 118 . . 3 292 . . 3209 108 Projectiles 12 | . . 12 . . . . . . . . . . . . . . . Explosions 3210 | . . . . . . . . . . . . . . . . 3152 58 Melee 520 | . . . . . . . . . 118 . . 3 292 . . 57 50 Knockbacks 2 | . . . . . . . . . . . . 1 . . . . 1 Impact 2 | . . . . . . . . . . . . 1 . . . . 1 Kinetic . | . . . . . . . . . . . . . . . . . . Secondary . | . . . . . . . . . . . . . . . . . . Self-Inflicted Damage 811 | . . 19 . . . . . . . . . . . . . 745 47 Shots 3 | . . 1 . . . . . . . . . . . . . 1 1 Rammed 4 | . . 2 1 1 . . . . . . . . . . . . . Targets Rammed 7 | . . 2 1 1 . . . . . . . . . . . 1 2 Kicked 3 | . . . . . . . . . . . . . . . . 1 2 Crushed . | . . . . . . . . . . . . . . . . . . Highest Temperature 388 | 24 330 329 . 313 144 7 38 82 18 . 26 12 9 120 9 239 388 Average Temperature 61 | 12 95 80 . 76 33 2 11 30 6 . 8 6 2 48 6 120 142 Received Heat Transfer 2871 | . 279 228 . 990 684 . 54 . . . 21 12 . 81 45 393 84 Effects 2 | . 1 1 . . . . . . . . . . . . . . . Energy Bleed 1 | . . 1 . . . . . . . . . . . . . . . Damage (minor) 1 | . 1 . . . . . . . . . . . . . . . . Siege Activations . | . . . . . . . . . . . . . . . . . . Robots Corrupted . | . . . . . . . . . . . . . . . . . . Combat Hostiles . | . . . . . . . . . . . . . . . . . . Parts Fried 14 | . . 3 . . . . . . 2 . . 2 7 . . . . Impact Corruptions 9 | . . . . . . . . . 2 . . 1 4 . . . 2 Robots Melted . | . . . . . . . . . . . . . . . . . . Combat Hostiles . | . . . . . . . . . . . . . . . . . . Parts Melted 14 | 2 5 4 . 3 . . . . . . . . . . . . . Heat Transferred 6089 | 111 1443 1900 37 1998 . . . . . . . . . . . 600 . Parts Sabotaged 1 | . . . . . . . . . . . . . . . . . 1 Parts Stolen . | . . . . . . . . . . . . . . . . . . Parts Stripped . | . . . . . . . . . . . . . . . . . . Power Chain Reactions 1 | . . 1 . . . . . . . . . . . . . . . Missiles Intercepted . | . . . . . . . . . . . . . . . . . . Alert | -11 -10 -9 -9 -8 -8 -7 -6 -5 -4 -4 -4 -3 -3 -2 -2 -2 -1 ------- Run | Jun Mat Mat Min Mat Sto Fac Fac Fac Fac Was Fac Res Tes Res Qua Sec Acc Peak Influence 5671 | 5 258 401 156 352 412 219 402 284 221 88 178 209 234 649 488 5671 4615 Initial 3402 | . 3 . 156 60 122 165 107 196 138 73 61 93 126 131 294 274 3402 Average 372 | 2 92 179 156 189 290 165 194 235 178 78 123 132 192 348 382 1868 3880 Maximum Alert Level 5 | . 1 2 . 1 2 1 2 1 1 . . 1 1 2 2 5 5 Low Security (%) 49 | 100 93 64 100 49 20 92 73 23 69 100 100 95 65 21 . . . Level 1 39 | . 6 31 . 50 69 7 25 76 30 . . 4 34 42 59 14 . Level 2 6 | . . 4 . . 10 . 1 . . . . . . 36 40 26 . Level 3 . | . . . . . . . . . . . . . . . . . . Level 4 . | . . . . . . . . . . . . . . . . . . Level 5 . | . . . . . . . . . . . . . . . . . 14 High Security . | . . . . . . . . . . . . . . . . . . Max Security 4 | . . . . . . . . . . . . . . . . 58 85 Squads Dispatched 74 | . 3 2 1 3 3 1 3 1 . . 1 . 1 5 . 17 33 Investigation 8 | . 2 . . . . . 2 1 . . 1 . . 2 . . . Extermination . | . . . . . . . . . . . . . . . . . . Reinforcement 20 | . 1 2 . 3 3 1 1 . . . . . 1 3 . 2 3 Assault 34 | . . . 1 . . . . . . . . . . . . 12 21 Garrison 2 | . . . . . . . . . . . . . . . . . 2 Intercept 10 | . . . . . . . . . . . . . . . . 3 7 Searches Triggered 2 | . . . . . . . . . . . . . . 1 1 . . Construction Impeded 2 | . . . . 1 . . . . . . . . . . . . 1 Haulers Reinforced . | . . . . . . . . . . . . . . . . . . Active Scanning Responses . | . . . . . . . . . . . . . . . . . . Cargo Convoy Interrupts . | . . . . . . . . . . . . . . . . . . Stealth | -11 -10 -9 -9 -8 -8 -7 -6 -5 -4 -4 -4 -3 -3 -2 -2 -2 -1 --------- Run | Jun Mat Mat Min Mat Sto Fac Fac Fac Fac Was Fac Res Tes Res Qua Sec Acc Distress Signals 22 | . . 5 . 3 1 1 . . . . . 1 . 4 1 2 4 Communications Jammed . | . . . . . . . . . . . . . . . . . . Distress Signals . | . . . . . . . . . . . . . . . . . . Times Spotted 453 | . 35 50 . 38 36 5 23 2 6 3 5 11 5 43 15 88 88 Peak Tracking Total 37 | . 5 7 . 4 5 7 11 2 2 3 5 9 3 14 6 37 35 Tactical Retreats 43 | . 2 1 . 3 . 1 5 . . . . 2 . 7 2 8 12 Traps | -11 -10 -9 -9 -8 -8 -7 -6 -5 -4 -4 -4 -3 -3 -2 -2 -2 -1 ------- Run | Jun Mat Mat Min Mat Sto Fac Fac Fac Fac Was Fac Res Tes Res Qua Sec Acc Traps Triggered 17 | . 4 1 . . 1 1 . . 2 . . . 1 3 2 . 2 Indirectly . | . . . . . . . . . . . . . . . . . . Trap Hack Attempts . | . . . . . . . . . . . . . . . . . . Triggered . | . . . . . . . . . . . . . . . . . . Disarmed . | . . . . . . . . . . . . . . . . . . Reprogrammed . | . . . . . . . . . . . . . . . . . . Reused . | . . . . . . . . . . . . . . . . . . Traps Extracted . | . . . . . . . . . . . . . . . . . . Installed . | . . . . . . . . . . . . . . . . . . Triggered . | . . . . . . . . . . . . . . . . . . Machines | -11 -10 -9 -9 -8 -8 -7 -6 -5 -4 -4 -4 -3 -3 -2 -2 -2 -1 ---------- Run | Jun Mat Mat Min Mat Sto Fac Fac Fac Fac Was Fac Res Tes Res Qua Sec Acc Machines Disabled 36 | . 1 2 . 2 2 . . . . . . . 2 . 7 18 2 Max in Single Turn 8 | . 1 1 . 1 1 . . . . . . . 1 . 1 8 1 Garrison Access 5 | . . . . 1 1 . 2 1 . . . . . . . . . Machines Repaired . | . . . . . . . . . . . . . . . . . . Machines Sabotaged . | . . . . . . . . . . . . . . . . . . Overloaded Fab Kills . | . . . . . . . . . . . . . . . . . . Hacking | -11 -10 -9 -9 -8 -8 -7 -6 -5 -4 -4 -4 -3 -3 -2 -2 -2 -1 --------- Run | Jun Mat Mat Min Mat Sto Fac Fac Fac Fac Was Fac Res Tes Res Qua Sec Acc Machines Accessed 71 | . 4 5 . 6 9 6 9 5 2 . 4 3 3 4 9 2 . Terminals 52 | . 4 4 . 4 8 5 5 2 . . 3 2 3 3 7 2 . Fabricators 3 | . . . . . . . 2 . 1 . . . . . . . . Repair Stations 7 | . . . . 1 . . . 2 . . 1 . . 1 2 . . Recycling Units . | . . . . . . . . . . . . . . . . . . Scanalyzers 3 | . . 1 . . . 1 . . 1 . . . . . . . . Garrison Access 6 | . . . . 1 1 . 2 1 . . . 1 . . . . . Total Hacks 151 | . 8 10 . 15 22 14 19 9 3 . 11 7 4 9 17 3 . Successful 83 | . 6 5 . 8 11 5 15 2 3 . 6 1 4 2 13 2 . Failed 66 | . 1 5 . 7 11 9 3 7 . . 5 6 . 7 4 1 . Catastrophic 12 | . 1 . . 1 2 2 . 1 . . 1 1 . 3 . . . Database Lockouts 2 | . 1 . . . . . 1 . . . . . . . . . . Manual 72 | . 6 6 . 7 12 10 7 2 . . 5 4 2 7 4 . . Terminals 109 | . 8 8 . 9 21 11 13 5 . . 7 4 4 7 9 3 . Fabricators 5 | . . . . . . . 4 . 1 . . . . . . . . Repair Stations 21 | . . . . 4 . . . 3 . . 4 . . 2 8 . . Recycling Units . | . . . . . . . . . . . . . . . . . . Scanalyzers 7 | . . 2 . . . 3 . . 2 . . . . . . . . Garrison Access 9 | . . . . 2 1 . 2 1 . . . 3 . . . . . Terminal Hacks 46 | . 6 3 . 3 7 2 9 . . . 3 1 2 1 7 2 . Part Schematic 1 | . . . . . . . 1 . . . . . . . . . . Robot Analysis 2 | . 1 . . . 1 . . . . . . . . . . . . Open Door 6 | . . . . . 3 . . . . . . . . . 2 1 . Level Access Points 4 | . . . . . . 1 1 . . . . . 1 . 1 . . Branch Access Points 6 | . . . . 1 . . 1 . . . 1 1 . 1 1 . . Emergency Access Points 3 | . . . . . 1 . 1 . . . . . . . 1 . . Machine Index 1 | . . . . . . . 1 . . . . . . . . . . Terminal Index 5 | . 1 1 . 1 . 1 . . . . 1 . . . . . . Alert Level 6 | . . 1 . . 1 . 2 . . . 1 . 1 . . . . Dispatch Records 1 | . 1 . . . . . . . . . . . . . . . . Investigation Status 1 | . 1 . . . . . . . . . . . . . . . . Recall Investigation 1 | . . . . . . . 1 . . . . . . . . . . Hauler Manifests 6 | . 2 1 . 1 1 . 1 . . . . . . . . . . Zone Layout 3 | . . . . . . . . . . . . . . . 2 1 . Fabricator Hacks 5 | . . . . . . . 4 . 1 . . . . . . . . Load Schematic 3 | . . . . . . . 2 . 1 . . . . . . . . Build 2 | . . . . . . . 2 . . . . . . . . . . Repair Station Hacks 15 | . . . . 4 . . . 1 . . 3 . . 1 6 . . Scan Component 6 | . . . . 2 . . . . . . 1 . . . 3 . . Repair 6 | . . . . 2 . . . . . . 1 . . . 3 . . Refit 3 | . . . . . . . . 1 . . 1 . . 1 . . . Recycling Unit Hacks . | . . . . . . . . . . . . . . . . . . Scanalyzer 7 | . . 2 . . . 3 . . 2 . . . . . . . . Insert Component 4 | . . 1 . . . 2 . . 1 . . . . . . . . Analyze 3 | . . 1 . . . 1 . . 1 . . . . . . . . Garrison Access Hacks 5 | . . . . 1 1 . 2 1 . . . . . . . . . Seal Access 5 | . . . . 1 1 . 2 1 . . . . . . . . . Unauthorized Hacks 5 | . . . . . 3 . . . . . . . 2 . . . . Terminals 5 | . . . . . 3 . . . . . . . 2 . . . . Assimilate 2 | . . . . . . . . . . . . . 2 . . . . Botnet 2 | . . . . . 2 . . . . . . . . . . . . Operators 1 | . . . . . 1 . . . . . . . . . . . . Fabricators . | . . . . . . . . . . . . . . . . . . Repair Stations . | . . . . . . . . . . . . . . . . . . Recycling Units . | . . . . . . . . . . . . . . . . . . Scanalyzers . | . . . . . . . . . . . . . . . . . . Garrison Access . | . . . . . . . . . . . . . . . . . . Data Cores Recovered . | . . . . . . . . . . . . . . . . . . Used . | . . . . . . . . . . . . . . . . . . Hacking Detections 48 | . 2 5 . 3 4 6 4 3 . . 4 3 2 4 7 1 . Full Trace Events 7 | . . . . . 1 . 2 1 . . 1 . . 2 . . . Feedback Events 1 | . . . . . . . . . . . 1 . . . . . . Hackware Fried 1 | . . . . . . . . . . . 1 . . . . . . Feedback Blocked . | . . . . . . . . . . . . . . . . . . Robot Schematics Acquired 1 | . . . . . . . . . . . . . . . . 1 . Robots Built . | . . . . . . . . . . . . . . . . . . Authchips . | . . . . . . . . . . . . . . . . . . Time . | . . . . . . . . . . . . . . . . . . Total Robot Build Rating . | . . . . . . . . . . . . . . . . . . Part Schematics Acquired 5 | . . 1 . . . 1 1 . 1 . . . . . . 1 . Parts Built . | . . . . . . . . . . . . . . . . . . Authchips . | . . . . . . . . . . . . . . . . . . Time 201 | . . . . . . . 201 . . . . . . . . . . Total Part Build Rating . | . . . . . . . . . . . . . . . . . . Parts Repaired 6 | . . . . 2 . . . . . . 1 . . . 3 . . Time 181 | . . . . 89 . . . . . . 19 . . . 73 . . Parts Recycled . | . . . . . . . . . . . . . . . . . . Recycled Matter . | . . . . . . . . . . . . . . . . . . Retrieved Matter . | . . . . . . . . . . . . . . . . . . Retrieved Components . | . . . . . . . . . . . . . . . . . . Parts Scanalyzed 3 | . . 1 . . . 1 . . 1 . . . . . . . . Part Schematics Acquired 3 | . . 1 . . . 1 . . 1 . . . . . . . . Parts Damaged . | . . . . . . . . . . . . . . . . . . Bothacking | -11 -10 -9 -9 -8 -8 -7 -6 -5 -4 -4 -4 -3 -3 -2 -2 -2 -1 ------------ Run | Jun Mat Mat Min Mat Sto Fac Fac Fac Fac Was Fac Res Tes Res Qua Sec Acc Used RIF Installer . | . . . . . . . . . . . . . . . . . . Robots Hacked . | . . . . . . . . . . . . . . . . . . Non-combat . | . . . . . . . . . . . . . . . . . . Combat . | . . . . . . . . . . . . . . . . . . Robot Hacks Applied . | . . . . . . . . . . . . . . . . . . Relay Couplers Released . | . . . . . . . . . . . . . . . . . . Fabnet Peak Effective % . | . . . . . . . . . . . . . . . . . . Robots Rewired . | . . . . . . . . . . . . . . . . . . Allies Hacked . | . . . . . . . . . . . . . . . . . . Hacks Repelled . | . . . . . . . . . . . . . . . . . . Allies | -11 -10 -9 -9 -8 -8 -7 -6 -5 -4 -4 -4 -3 -3 -2 -2 -2 -1 -------- Run | Jun Mat Mat Min Mat Sto Fac Fac Fac Fac Was Fac Res Tes Res Qua Sec Acc Total Allies 56 | . . . 1 . . . . . . . . . 1 . . . 54 Largest Group 7 | . . . 1 1 . . . . . . . . 1 . . . 7 Highest-Rated Group 95 | . . . 31 31 . . . . . . . . 26 . . . 95 Highest-Rated Ally 31 | . . . 31 31 . . . . . . . . 26 . . . 15 Total Orders 3 | . . . . . 3 . . . . . . . . . . . . EXPLORE 3 | . . . . . 3 . . . . . . . . . . . . Ally Attacks 62 | . . . . 15 . . . . . . . . . . . . 47 Total Damage 940 | . . . . 149 . . . . . . . . . . . . 791 Kills 7 | . . . . 2 . . . . . . . . . . . . 5 Allies Corrupted . | . . . . . . . . . . . . . . . . . . Allies Melted . | . . . . . . . . . . . . . . . . . . Intel | -11 -10 -9 -9 -8 -8 -7 -6 -5 -4 -4 -4 -3 -3 -2 -2 -2 -1 ------- Run | Jun Mat Mat Min Mat Sto Fac Fac Fac Fac Was Fac Res Tes Res Qua Sec Acc Robot Analysis Total 2 | . 1 . . . 1 . . . . . . . . . . . . Derelict Logs Recovered . | . . . . . . . . . . . . . . . . . . Drone Launches 6 | . . . . . 6 . . . . . . . . . . . . Drone Recoveries 1 | . . . . . 1 . . . . . . . . . . . . Exploration | -11 -10 -9 -9 -8 -8 -7 -6 -5 -4 -4 -4 -3 -3 -2 -2 -2 -1 ------------- Run | Jun Mat Mat Min Mat Sto Fac Fac Fac Fac Was Fac Res Tes Res Qua Sec Acc Turns Passed 12022 | 70 1621 1913 120 2946 2576 325 292 134 148 18 87 101 143 408 379 362 379 Spaces Moved 12191 | 47 854 557 50 1081 823 846 973 618 496 93 344 472 347 1561 1074 974 981 Core 21 | 18 . 3 . . . . . . . . . . . . . . . Treads 2748 | 29 312 419 50 1081 823 34 . . . . . . . . . . . Legs 1414 | . . . . . . . . . . . . . . . . 433 981 Wheels 677 | . 542 135 . . . . . . . . . . . . . . . Hover . | . . . . . . . . . . . . . . . . . . Flight 7199 | . . . . . . 812 973 618 496 93 344 472 347 1561 1074 409 . Fastest Speed 11 | 50 110 200 240 225 225 23 20 18 18 18 18 18 18 14 11 14 30 Average Speed 77 | 117 158 282 240 228 231 32 21 19 18 18 18 18 18 18 18 24 30 Slowest Speed 1650 | 160 240 1650 240 317 250 250 23 20 18 18 18 18 18 24 21 30 30 Overloaded Moves 254 | . . . . . . . . . . . . . . 18 122 114 . Propulsion Burnouts . | . . . . . . . . . . . . . . . . . . Robots Hopped 115 | . . . . . . 2 27 4 2 . 4 4 13 39 14 5 1 Cave-ins Triggered . | . . . . . . . . . . . . . . . . . . Microwarps 3 | . . . . . . . . . . . . . . . . 3 . Exploration Rate (%) 43 | 3 90 62 15 64 94 21 32 15 12 68 12 17 50 44 85 60 38 Regions Visited 17 Branch Regions 5 Pre-discovered Areas . | . . . . . . . . . . . . . . . . . . Known Exits Taken 8 | . . . . 1 . 1 1 . . . . 1 1 1 1 1 . Unknown Exits Taken 7 | 1 1 1 1 . 1 . . 1 . . 1 . . . . . . Scrap Searched . | . . . . . . . . . . . . . . . . . . Spaces Dug 46 | . . . . . . 4 11 . 1 . . 2 . 3 9 1 15 Terrain Destroyed 2392 | . 6 2 . 4 4 4 11 . 1 . . 2 . 3 10 2235 110 Melee 28 | . . . . . . 4 11 . 1 . . 2 . 3 6 1 . Projectile 110 | . . . . 3 3 . . . . . . . . . 4 7 93 AOE 2252 | . 6 2 . . . . . . . . . . . . . 2227 17 Terrain Rammed . | . . . . . . . . . . . . . . . . . . Walls Destroyed . | . . . . . . . . . . . . . . . . . . Machines Disabled . | . . . . . . . . . . . . . . . . . . Actions | -11 -10 -9 -9 -8 -8 -7 -6 -5 -4 -4 -4 -3 -3 -2 -2 -2 -1 --------- Run | Jun Mat Mat Min Mat Sto Fac Fac Fac Fac Was Fac Res Tes Res Qua Sec Acc Total 13707 | 60 1001 727 50 1386 1287 897 1003 624 532 93 363 477 398 1636 1215 929 1029 Wait 768 | . 33 9 . 129 316 . 29 3 . . 19 . 42 84 84 . 20 Move 11837 | 46 853 556 49 1080 822 841 931 609 492 92 335 463 320 1488 1047 834 979 Hop 94 | . . . . . . 2 14 4 2 . 4 4 13 33 12 5 1 Pick Up 149 | 7 22 29 . 27 8 14 4 1 5 1 1 3 1 3 8 14 1 Fast Attach 58 | . . 7 . 3 7 6 5 1 . . . . 6 8 8 7 . Attach 77 | 6 10 8 . 8 2 10 . 1 6 . 2 2 . 3 5 11 3 Detach 6 | . 3 1 . . . . . . 1 . . . . . 1 . . Swap 40 | . . 9 . 10 8 1 . 2 . . 2 1 3 . 4 . . Drop 133 | . 1 20 . 32 16 19 6 2 3 . . 1 6 7 10 9 1 Fire 428 | 1 79 86 . 96 108 . . . . . . . . . 7 29 22 Melee 66 | . . . . . . 4 14 1 13 . . 3 7 3 12 9 . Ram . | . . . . . . . . . . . . . . . . . . Kick 3 | . . . . . . . . . . . . . . . . 1 2 Crush 4 | . . 2 1 1 . . . . . . . . . . . . . Escape Stasis 44 | . . . . . . . . . 10 . . . . 7 17 10 . Rewire . | . . . . . . . . . . . . . . . . . . Trap . | . . . . . . . . . . . . . . . . . . Miscellaneous . | . . . . . . . . . . . . . . . . . . Route ------- -11/Junkyard -10/Materials (discovered 6 exits: *Mat x3 / [*Min x2] / [*Sub]) -9/Materials (discovered 3 exits: *Mat / [*Min x2]) -9/Mines -8/Materials (discovered 4 exits: *Fac x3 / *Sto) -8/Storage -7/Factory (discovered 4 exits: *Fac x4) -6/Factory (discovered 6 exits: *Fac x4 / *Low x2) -5/Factory -4/Factory -4/Waste -4/Factory (discovered 5 exits: *Res / Upp x2 / Ext x2) -3/Research (discovered 3 exits: Arm / *Tes x2) -3/Testing -2/Research (discovered 4 exits: *Acc x2 / *Qua x2) -2/Quarantine -2/Section 7 -1/Access (discovered 1 exit: [Com]) History --------- Turn | Location | Event 5 | -11/Junkyard | Discovered new exit (range 15) 71 | -11/Junkyard | Entered Materials 84 | -10/Materials | Central database locked down 236 | -10/Materials | Discovered new exit (range 6) 315 | -10/Materials | Build established: Mutant 393 | -10/Materials | Discovered new exit (range 16) 500 | -10/Materials | Derelicts attacked the area 727 | -10/Materials | Lost 4 parts (2n1u1w) 823 | -10/Materials | Core integrity fell below 50% 900 | -10/Materials | Discovered new exit (range 16) 1030 | -10/Materials | Discovered new exit (range 15) 1242 | -10/Materials | Discovered new exit (range 11) 1666 | -10/Materials | Discovered new exit (range 5) 1692 | -10/Materials | Entered another Materials area 1692 | -9/Materials | Evolved 2 slots: Propulsion x1, Utility x1 2681 | -9/Materials | Discovered new exit (range 8) 3081 | -9/Materials | Core integrity fell below 50% 3247 | -9/Materials | Discovered new exit (range 11) 3517 | -9/Materials | Discovered new exit (range 16) 3605 | -9/Materials | Entered Mines 3712 | -9/Mines | Met a Derelict testing a Signal Generator 3713 | -9/Mines | Discovered new exit (range 6) 3725 | -9/Mines | Entered Materials 3725 | -8/Materials | Accompanied by 1 ally 3725 | -8/Materials | Evolved 2 slots: Utility x2 4489 | -8/Materials | Discovered new exit (range 4) 4726 | -8/Materials | Discovered new exit (range 10) 4999 | -8/Materials | Discovered new exit (range 8) 5160 | -8/Materials | Identified exit to Storage 5801 | -8/Materials | Discovered new exit (range 5) 5994 | -8/Materials | Core integrity fell below 50% 6109 | -8/Materials | Repaired Adv. Treads 6161 | -8/Materials | Repaired Hvy. Ion Engine 6671 | -8/Materials | Entered Storage 8262 | -8/Storage | Discovered new exit (range 8) 8720 | -8/Storage | Core integrity fell below 20% 9247 | -8/Storage | Entered Factory 9247 | -7/Factory | Evolved 2 slots: Propulsion x2 9376 | -7/Factory | Identified exit to Factory 9572 | -7/Factory | Entered another Factory area 9572 | -6/Factory | Evolved 2 slots: Propulsion x1, Utility x1 9640 | -6/Factory | Build established: Hacker-Sprinter 9656 | -6/Factory | Central database locked down 9784 | -6/Factory | Spotted B-75 Beast 9792 | -6/Factory | Identified exit to Factory 9792 | -6/Factory | Identified exit to Lower Caves 9864 | -6/Factory | Entered another Factory area 9864 | -5/Factory | Evolved 2 slots: Power x1, Propulsion x1 9948 | -5/Factory | Discovered new exit (range 12) 9998 | -5/Factory | Entered another Factory area 9998 | -4/Factory | Evolved 2 slots: Utility x2 10146 | -4/Factory | Sucked down chute 10146 | -4/Factory | Entered Waste 10155 | -4/Waste | Spotted C-40 Crusher 10155 | -4/Waste | Spotted C-40 Crusher 10156 | -4/Waste | Spotted C-40 Crusher 10157 | -4/Waste | Spotted C-40 Crusher 10157 | -4/Waste | Spotted C-40 Crusher 10159 | -4/Waste | Spotted C-40 Crusher 10160 | -4/Waste | Discovered new exit (range 14) 10161 | -4/Waste | EMP discharged 10161 | -4/Waste | System corruption reached 10% 10164 | -4/Waste | Entered Factory 10223 | -4/Factory | Repaired Imp. Propulsion Shielding 10230 | -4/Factory | Identified exit to Upper Caves 10230 | -4/Factory | Identified exit to Extension 10230 | -4/Factory | Imp. Hacking Suite fried by hacking feedback 10249 | -4/Factory | Discovered new exit (range 14) 10251 | -4/Factory | Entered Research 10251 | -3/Research | Evolved 2 slots: Utility x2 10346 | -3/Research | Discovered new exit (range 9) 10347 | -3/Research | Identified exit to Armory 10347 | -3/Research | Identified exit to Testing 10352 | -3/Research | Entered Testing 10354 | -3/Testing | Identified exit to Research 10381 | -3/Testing | Found Prototype Energy Cannon 10381 | -3/Testing | Identified Imp. Potential Cannon 10411 | -3/Testing | Spotted PG-VJVF1X55KA 10495 | -3/Testing | Entered Research 10495 | -2/Research | Evolved 2 slots: Propulsion x1, Utility x1 10497 | -2/Research | Found Prototype Device 10497 | -2/Research | Identified Exp. Force Field 10559 | -2/Research | Build established: Hacker-Scout 10581 | -2/Research | Discovered new exit (range 19) 10584 | -2/Research | Identified exit to Access 10745 | -2/Research | Search patrols dispatched 10817 | -2/Research | Discovered exit to Access (range 10) 10857 | -2/Research | Identified exit to Quarantine 10879 | -2/Research | Spotted B-90 Cyclops 10895 | -2/Research | Spotted B-90 Cyclops 10903 | -2/Research | Entered Quarantine 10938 | -2/Quarantine | Repaired Imp. VTOL Module 10970 | -2/Quarantine | Repaired Imp. VTOL Module 10990 | -2/Quarantine | Repaired Sml. Storage Unit 11043 | -2/Quarantine | Found Alien Slashing Weapon 11054 | -2/Quarantine | Found Alien Artifact 11054 | -2/Quarantine | Identified Subatomic Replicator 11065 | -2/Quarantine | Spotted Alpha 7 11069 | -2/Quarantine | Found Alien Launcher 11090 | -2/Quarantine | Found Alien Artifact 11090 | -2/Quarantine | Identified Phase Armor 11101 | -2/Quarantine | Found Alien Artifact 11101 | -2/Quarantine | Identified Terrabomb 11101 | -2/Quarantine | Used Terrabomb 11110 | -2/Quarantine | Found Alien Reactor 11110 | -2/Quarantine | Identified Matter Drive 11153 | -2/Quarantine | Search patrols dispatched 11168 | -2/Quarantine | Found Alien Artifact 11168 | -2/Quarantine | Identified Core Reset Matrix 11168 | -2/Quarantine | Identified Sigix Terminator 11168 | -2/Quarantine | Identified Sigix Broadsword 11168 | -2/Quarantine | Used Core Reset Matrix 11172 | -2/Quarantine | Detected hypermatrix surge 11172 | -2/Quarantine | Sensed 2 artifacts in vicinity 11181 | -2/Quarantine | Met incapacitated Sigix Warrior 11181 | -2/Quarantine | Lockdown squad dispatched 11228 | -2/Quarantine | Spotted Lightning 11267 | -2/Quarantine | Spotted Fortress 11280 | -2/Quarantine | Discovered new exit (range 6) 11281 | -2/Quarantine | Identified exit to Section 7 11282 | -2/Quarantine | Entered Section 7 11283 | -2/Section 7 | Sensed 22 artifacts in vicinity 11290 | -2/Section 7 | Found Integrity Redistributor 11290 | -2/Section 7 | Used Integrity Redistributor, redistributed integrity from core (-94) 11297 | -2/Section 7 | Spotted B-90 Cyclops 11316 | -2/Section 7 | Found Microwarp Drive 11350 | -2/Section 7 | Spotted S7 Guard 11354 | -2/Section 7 | Spotted Executioner 11358 | -2/Section 7 | Spotted B-99 Colossus 11374 | -2/Section 7 | Integrated with Sigix Exoskeleton 11380 | -2/Section 7 | Sigix Warrior commented on Exoskeleton integration 11402 | -2/Section 7 | Scanned by Researcher 11420 | -2/Section 7 | Used Subatomic Replicator to create Supercharged Sigix Terminator 11450 | -2/Section 7 | Spotted Executioner 11450 | -2/Section 7 | Spotted Executioner 11456 | -2/Section 7 | Spotted Striker 11456 | -2/Section 7 | Spotted Striker 11471 | -2/Section 7 | Found Sigix Sheargun 11472 | -2/Section 7 | Found Sigix Sheargun 11479 | -2/Section 7 | Intercept squad dispatched 11493 | -2/Section 7 | Spotted Tracker 11495 | -2/Section 7 | Spotted Tracker 11505 | -2/Section 7 | Core integrity fell below 50% 11523 | -2/Section 7 | Sigix Exoskeleton integrity reduced to 80% 11527 | -2/Section 7 | Destroyed Tracker 11534 | -2/Section 7 | Found Core Expander 11534 | -2/Section 7 | Installed Core Expander, added new Utility slot 11535 | -2/Section 7 | Spotted Combat Programmer 11535 | -2/Section 7 | Spotted Combat Programmer 11558 | -2/Section 7 | Found LRC Boosters 11558 | -2/Section 7 | Installed LRC Boosters, increased mass support (+10) 11560 | -2/Section 7 | Found LRC Armor 11560 | -2/Section 7 | Installed LRC Armor, increased core integrity (+250) 11568 | -2/Section 7 | Destroyed Combat Programmer 11576 | -2/Section 7 | Fired Supercharged Sigix Terminator 11576 | -2/Section 7 | Destroyed Combat Programmer 11577 | -2/Section 7 | Sigix Exoskeleton integrity reduced to 60% 11584 | -2/Section 7 | Sigix Exoskeleton integrity reduced to 40% 11586 | -2/Section 7 | Core integrity fell below 20% 11594 | -2/Section 7 | Spotted Investigator 11597 | -2/Section 7 | Destroyed 18 combat bots 11626 | -2/Section 7 | Discovered exit to Access (range 18) 11643 | -2/Section 7 | Sigix Exoskeleton integrity reduced to 20% 11644 | -2/Section 7 | Entered Access 11644 | -1/Access | Evolved 2 slots: Weapon x2 11649 | -1/Access | Emitted hypermatrix ping 11654 | -1/Access | Assembled emerged from beneath the floor 11673 | -1/Access | Build established: Alien-Sigix 11694 | -1/Access | Assembled emerged from beneath the floor 11776 | -1/Access | Intercept squad dispatched 11793 | -1/Access | Spotted Tracker 11794 | -1/Access | Spotted Tracker 11796 | -1/Access | Assembled emerged from beneath the floor 11808 | -1/Access | Destroyed Tracker 11813 | -1/Access | Spotted Combat Programmer 11828 | -1/Access | Assembled emerged from beneath the floor 11852 | -1/Access | Spotted Combat Programmer 11883 | -1/Access | Spotted Striker 11883 | -1/Access | Spotted Striker 11883 | -1/Access | Spotted Executioner 11894 | -1/Access | Spotted B-99 Colossus 11895 | -1/Access | Assembled emerged from beneath the floor 11896 | -1/Access | Garrison activated, responded to threat 11908 | -1/Access | Discovered new exit (range 18) 11923 | -1/Access | Spotted B-99 Colossus 11933 | -1/Access | Spotted B-99 Colossus 11935 | -1/Access | Assembled emerged from beneath the floor 11975 | -1/Access | Assembled emerged from beneath the floor 11998 | -1/Access | Intercept squad dispatched 12010 | -1/Access | Spotted Tracker 12010 | -1/Access | Spotted Tracker 12012 | -1/Access | Spotted Tracker 12016 | -1/Access | Assembled emerged from beneath the floor 12023 | -1/Access | Exoskeleton Destroyed Last Messages --------------- 12015_ Quantum Shear penetrates Tracker. Tracker: "THREAT CONFIRMED. DEPLOY COMBAT PROGRAMMER." 12016_ Assembled emerge from beneath the floor. as-35288 melds with Sigix Exoskeleton. as-38045 melds with Sigix Exoskeleton. as-40678 melds with Sigix Exoskeleton. as-70744 melds with Sigix Exoskeleton. 12016_ as-99650 Unknown Hover Unit temporarily disabled. 12016_ Slug penetrates Wall. 12017_ Penetrated by Slug. 12017_ as-99650 destroyed. 12018_ K-01 Serf collects debris. 12019_ as-50224 suffers critical hit (Destroy). 12019_ as-50224 destroyed. 12021_ C-30 ARC bursts open, deploying its payload. 12021_ G-73 Enforcer unfolds itself. 12021_ L-61 Swordsman unfolds itself. 12021_ I-47 Archangel unfolds itself. 12023_ Sigix Exoskeleton destroyed. [Achievement: Torch] Map ----- +----------------------------------------------------+ | ####### ####### ###### #################??? | | ###### ####### ###### #################??? | | # ""####### ###### ############### ???? | | + ""####### ###### ############### ???? | | # T"#######+###### # """""" ## ???? | | # # ""# # # ""S""" ! ##????? | | ### # ""# # # """ #?????? | | ### # # # # #?????? | | ### # + # # ! ??????? | | ### # # """"""" # # """""" ???????? | | + = # """"""" # # """""" ???????? | | ####### # + # """""" ????????? | | ####### # # + """""" ????????? | | ####### # # # """""" ????????? | | ############## + # ?????????? | | ############## # #] ??????????? | | + A # #########??????????? | | ################/########## #########??????????? | | ####### g # ss ??????????? | | ###### gg # s w ?R???????? | | ###### g # ##+##+#########????????? | | ###### # g # # ????????? | | ####### # i%g #* # ????????? | | ####### + g # % # ???????? | | ## ## # l # ! # ???????? | | ! + # X# ! # "" ???????? | | ### ## C # # # "" ???????? | | #### ### # # #"""""???????? | | #### ### C # # #""""""??????? | | #### ### # ########### "" ???????? | | ###" ##########+##### ########### "" ???????? | | #" ### ##### s ########### ???????? | | ## % ### #####s ##### + ???????? | | ## % s ######## ##### ???????? | | ## #########p######### ########+????????? | | ## ## ##### ######## ????????? | | + ## #####+######## ????????? | | ## ## #### ##?????????? | | ## ## ""#### ##?????????? | | ## ## p ""#### ##?????????? | | ## ## """"" ""#### #??????????? | | ## ## """"" S#### ???????????? | | +### ## """"" ""#### ???????????? | | ## """"" ""#### ????????????? | | ## """"" ""#### ?????????????? | | ## #### ??????????????? | | #####+### #### # ##+##????????????????? | | ## ############+#### ?????????????????? | | ## ############ #### ????????????????????? | | !!! # ########### #### ?????????????????????? | +----------------------------------------------------+ Best States ------------- Heat Dissipation 122 Energy Generation 59 Energy Capacity 540 Matter Stores 300 Matter Capacity 300 Sight Range 22 Robot Scan Range 18 Terrain Scan Density 10 Armor Coverage 600 Resistance: KI 50 Resistance: TH 50 Resistance: EX 50 Resistance: EM 50 Resistance: I 50 Resistance: S 50 Resistance: P 50 Core Shielding 40 Propulsion Shielding 66 Utility Shielding 66 Weapon Shielding 66 Evasion (%) 69 Targeting Accuracy 16 Melee Accuracy 8 Recoil Reduction 3 Offensive Hacking 50 Defensive Hacking 10 Item Schematics ----------------- Hvy. Neutron Cannon | -2/Section 7 | Archive Robot Schematics ------------------ C-55 Analyst | -2/Section 7 | Archive Fabricated ------------ Nothing Alien Tech Used ----------------- Subatomic Replicator Phase Armor Terrabomb Matter Drive Core Reset Matrix Integrity Redistributor Microwarp Drive Sigix Exoskeleton Sigix Sheargun Core Expander Sigix Broadsword LRC Boosters LRC Armor Supercharged Sigix Terminator Achievements -------------- False Reunion Hard Hitter Torch Challenges ------------ None Game ------ Seed TransportThiefInsulator Manual? 0 Play Time 01:52:26 Cumulative 79.0 hours Start 2023.09.16 @ 18:50:08 End 2023.09.16 @ 20:44:54 Sessions 1 Manual Loads 0 Difficulty Rogue Special Mode None Game No. 71 Rogue 35 Adventurer 36 Explorer 0 Win Type - Total 7 Types 2/0/5/0/0/0/0/0/0 Lore% 45 Gallery% 67 Achievement% 57 Wizard Run 0 Options --------- ASCII 0 Keyboard 0 Movement Mouse Keybinds 0 Fullscreen 1 Font 18/SmallcapsGlow Map View 76x50 Tactical HUD 1 Map Filters NONE Filters NONE Steam 1 RUN: 65045911-24dd-48c1-9a00-29d87832037f